bitfinex/quotes_ETHUSD_20220310
["timestamp","ask_amount","ask_price","bid_price","bid_amount"]
[1646942718798,1.46073959,2612.7,2612.3,0.19991566]
[1646942718799,0.05974539,2612.6,2612.3,0.19991566]
[1646942718992,1.46073959,2612.5,2612.3,0.19991566]
[1646942719192,1.51021012,2612.4,2612.3,0.19991566]
[1646942724940,1.81021012,2612.4,2612.3,0.19991566]
[1646942728589,1.81021012,2612.4,2612.3,1.21369538]
[1646942728789,1.46073959,2612.4,2612.3,1.21369538]
[1646942729192,1.46073959,2612.6,2612.3,1.21369538]
[1646942729438,1.46073959,2612.5,2612.3,1.21369538]
[1646942729642,1.46073959,2612.4,2612.3,0.19991566]
[1646942729844,1.46073959,2612.6,2612.3,0.19991566]
[1646942730243,1.5187155,2612.5,2612.3,0.19991566]
[1646942730444,1.46073959,2612.4,2612.3,0.19991566]
[1646942730844,1.76073959,2612.4,2612.3,0.19991566]
[1646942733199,2.4647073,2612.4,2612.3,0.19991566]
[1646942733588,3.04740103,2612.4,2612.3,0.19991566]
[1646942736492,1.58666144,2612.4,2612.3,0.19991566]
[1646942736694,3.04404252,2612.4,2612.3,0.19991566]
[1646942737840,2.34007481,2612.4,2612.3,0.19991566]
[1646942738944,3.04404252,2612.4,2612.3,0.19991566]
[1646942739339,3.04593471,2612.4,2612.3,0.19991566]
[1646942739746,2.34007481,2612.4,2612.3,0.19991566]
[1646942740245,3.04581155,2612.4,2612.3,0.19991566]
[1646942742094,4.04581155,2612.4,2612.3,0.19991566]
[1646942742392,4.04581155,2612.4,2612.3,0.19845638]
[1646942745045,15.76581155,2612.4,2612.3,0.19845638]
[1646942745344,3.34007481,2612.4,2612.3,0.19845638]
[1646942745546,15.06007481,2612.4,2612.3,0.19845638]
[1646942745746,15.06007481,2612.4,2611.5,3.6884]
[1646942745747,13.06184,2612.3,2611.5,3.6884]
[1646942746048,4.46232777,2612.2,2611.5,3.6884]
[1646942746248,1.45738108,2612.1,2611.2,3.5]
[1646942746447,1.45738108,2612.1,2611.1,0.08131251]
[1646942746448,0.70529189,2612.0,2611.1,0.08131251]
[1646942746746,2.16267297,2612.0,2611.2,1.22565735]
[1646942746946,3.12054297,2612.0,2611.2,1.11818179]
[1646942747150,1.45738108,2611.9,2611.4,0.00405908]
[1646942747347,1.75738108,2611.9,2611.4,0.00405908]
[1646942747547,1.45738108,2611.8,2611.4,0.00405908]
[1646942747748,13.17738108,2611.8,2611.4,0.00405908]
[1646942747946,1.0,2611.6,2611.4,0.00405908]
[1646942748202,1.0,2611.6,2610.6,7.4245]
[1646942748390,1.45738108,2611.5,2610.7,0.107489]
[1646942748590,1.45738108,2611.5,2611.1,0.01623858]
[1646942749193,0.9581263,2611.4,2611.1,0.01623858]
[1646942749395,0.9581263,2611.4,2610.7,1.05927144]
[1646942749396,1.84138108,2611.3,2610.7,1.05927144]
[1646942749597,1.45738108,2611.2,2610.8,0.12385551]
[1646942749804,1.45738108,2611.2,2610.9,0.10756654]
[1646942750201,0.95812,2611.3,2610.9,0.10756654]
[1646942750400,1.45830664,2611.2,2610.9,0.10756654]
[1646942750800,1.45830664,2611.2,2610.9,0.00407182]
[1646942751000,0.05871052,2611.1,2610.9,0.00407182]
[1646942751801,0.05871052,2611.1,2610.7,0.10753014]
[1646942752039,0.05871052,2611.1,2610.9,0.0039497]
[1646942752641,3.15824,2611.5,2610.9,0.0039497]
[1646942752941,0.04769881,2611.3,2610.7,0.10753014]
[1646942753143,1.45716363,2611.2,2610.7,0.10753014]
[1646942753342,0.05833434,2611.1,2610.9,0.00394888]
[1646942753547,0.049923,2611.4,2610.9,0.00394888]
[1646942753746,1.45678812,2611.3,2610.9,0.00394888]
[1646942753946,0.05046586,2611.2,2610.9,0.00394888]
[1646942754145,2.8841,2611.5,2610.7,0.10753014]
[1646942754146,2.5001,2611.5,2610.7,0.10753014]
[1646942754347,1.45712982,2611.4,2611.0,0.00394881]
[1646942755349,1.45712982,2611.4,2610.7,0.10753014]
[1646942755792,1.45712982,2611.4,2611.1,0.0037667]
[1646942756697,1.45712982,2611.4,2610.8,0.10753014]
[1646942756897,1.45712982,2611.4,2611.1,0.00377082]
[1646942757798,1.45712982,2611.4,2610.8,0.10745919]
[1646942757997,1.45712982,2611.4,2611.1,0.00377082]
[1646942758196,1.42831982,2611.4,2611.1,0.00377082]
[1646942758397,2.55756451,2611.5,2611.1,0.00377082]
[1646942758697,1.35746451,2611.5,2611.1,0.00377082]
[1646942758997,1.35746451,2611.5,2611.0,1.05047383]
[1646942758998,1.05746451,2611.5,2611.0,1.05047383]
[1646942760256,0.56649623,2611.6,2611.0,1.05047383]
[1646942760453,3.74289002,2611.8,2611.6,1.18045496]
[1646942760656,3.5419,2612.1,2611.6,2.26925496]
[1646942760853,0.04931529,2612.0,2611.6,1.0888]
[1646942762055,0.04931529,2612.0,2611.3,1.11007499]
[1646942762254,0.75460718,2612.0,2611.3,1.11007499]
[1646942763054,1.71248718,2612.0,2611.3,1.11007499]
[1646942763490,2.67035718,2612.0,2611.3,1.11007499]
[1646942763690,0.3,2611.9,2611.3,1.11007499]
[1646942765097,0.0599203,2611.7,2611.1,0.06472433]
[1646942765295,0.0599203,2611.7,2611.1,0.01752332]
[1646942765499,0.3599203,2611.7,2611.1,0.01752332]
[1646942765900,3.8599203,2611.7,2611.1,0.01752332]
[1646942766097,1.97256489,2611.6,2611.1,0.01752332]
[1646942766296,1.97256489,2611.6,2610.8,0.06354193]
[1646942766297,0.05733639,2611.4,2610.8,0.06354193]
[1646942766498,0.05733639,2611.4,2611.0,0.00438083]
[1646942766698,1.05733639,2611.4,2611.0,0.00438083]
[1646942766948,1.35733639,2611.4,2611.0,0.00438083]
[1646942767149,0.95812,2611.3,2611.0,0.00438083]
[1646942767350,0.95813,2611.2,2610.6,1.1994]
[1646942767750,0.95813,2611.2,2611.0,0.00423607]
[1646942768551,3.5,2611.1,2610.5,0.07616116]
[1646942768751,3.549453,2611.1,2610.5,0.07616116]
[1646942768951,0.95821,2611.0,2610.6,0.01694646]
[1646942769153,0.06013461,2610.9,2610.6,0.01694646]
[1646942769955,0.06013461,2610.9,2610.2,1.1994]
[1646942770157,3.56013461,2610.9,2610.6,0.00423623]
[1646942770703,3.86013461,2610.9,2610.6,0.00423623]
[1646942771092,4.81836461,2610.9,2610.1,0.00153304]
[1646942771392,0.04853361,2610.8,2610.6,0.00407092]
[1646942771592,1.00680361,2610.8,2610.6,0.00407092]
[1646942771792,3.55578363,2610.7,2610.6,0.00407092]
[1646942772193,3.55578363,2610.7,2610.0,0.00153304]
[1646942772392,5.47257363,2610.7,2609.8,1.29624965]
[1646942772591,0.051799,2610.6,2609.8,1.29624965]
[1646942773394,1.310259,2610.6,2609.8,1.29624965]
[1646942773595,5.4584,2610.5,2609.8,1.29624965]
[1646942773796,5.4584,2610.5,2609.8,0.07404965]
[1646942773993,6.4584,2610.5,2609.8,0.07404965]
[1646942774463,6.4584,2610.5,2609.6,0.07687504]
[1646942774464,0.95844,2610.4,2609.6,0.07687504]
[1646942774669,0.95848,2610.3,2609.6,0.07687504]
[1646942774967,0.95848,2610.3,2610.0,0.00436299]
[1646942775669,4.75848,2610.3,2610.0,0.00436299]
[1646942775871,4.75848,2610.3,2609.6,0.07687504]
[1646942776269,4.75848,2610.3,2610.0,0.00436299]
[1646942776270,0.9585,2610.2,2610.0,0.00436299]
[1646942776469,3.5,2610.1,2610.0,0.00436299]
[1646942777169,3.5,2610.1,2609.4,0.08382639]
[1646942777170,0.95856,2610.0,2609.4,0.08382639]
[1646942777369,0.95856,2610.0,2609.9,0.00436307]
[1646942778194,6.86502458,2610.0,2609.1,0.07326688]
[1646942778400,3.5,2609.9,2609.8,0.00436315]
[1646942778696,1.91713,2610.0,2609.8,0.00436315]
[1646942779498,1.91713,2610.0,2609.2,0.00153304]
[1646942779698,5.41713,2610.0,2609.8,0.00421919]
[1646942780101,1.91713,2610.0,2609.8,0.00421919]
[1646942780301,1.91622358,2610.0,2609.8,0.00421919]
[1646942780501,1.91622358,2610.0,2609.3,1.06562735]
[1646942780700,1.91622358,2610.0,2609.4,0.11677268]
[1646942780905,1.91622358,2610.0,2609.8,0.00421919]
[1646942781801,1.91622358,2610.0,2609.3,1.06562735]
[1646942782046,0.95765358,2610.0,2609.4,0.11670917]
[1646942783047,0.95765358,2610.0,2609.5,0.11670917]
[1646942783249,0.95765358,2610.0,2609.3,0.00405127]
[1646942783250,0.0040504,2609.8,2609.3,0.00405127]
[1646942783451,0.0032504,2609.8,2609.3,0.00405127]
[1646942784150,0.95765358,2610.0,2609.2,0.18262569]
[1646942784351,0.95765358,2610.0,2609.3,0.11591636]
[1646942785051,0.0372959,2609.9,2609.3,0.11591636]
[1646942785252,0.07390811,2609.9,2609.3,0.11591636]
[1646942786999,0.07390811,2609.9,2609.5,1.1518081]
[1646942788102,0.0043629,2609.8,2609.6,0.11590818]
[1646942788303,0.0043629,2609.8,2609.5,1.1518081]
[1646942788902,0.0043629,2609.8,2609.6,0.11586096]
[1646942789104,0.07390811,2609.9,2609.6,0.11586096]
[1646942789303,0.00436293,2609.8,2609.6,0.11586096]
[1646942790150,0.04065329,2609.8,2609.6,0.11586096]
[1646942790550,0.04501619,2609.8,2609.6,0.11586096]
[1646942791357,0.04065329,2609.8,2609.6,0.11586096]
[1646942792053,0.04487221,2609.8,2609.6,0.11586096]
[1646942792651,0.04065329,2609.8,2609.6,0.11586096]
[1646942792852,0.04487221,2609.8,2609.6,0.11586096]
[1646942793900,0.04065329,2609.8,2609.6,0.11586096]
[1646942794097,0.04487221,2609.8,2609.6,0.11586096]
[1646942795100,0.04065329,2609.8,2609.6,0.11586096]
[1646942795304,0.0447042,2609.8,2609.6,0.11586096]
[1646942796302,0.04065329,2609.8,2609.6,0.11586096]
[1646942796505,0.04437993,2609.8,2609.6,0.11586096]
[1646942797546,0.04065329,2609.8,2609.6,0.11586096]
[1646942797744,0.04437993,2609.8,2609.6,0.11586096]
[1646942798746,0.04065329,2609.8,2609.6,0.11586096]
[1646942798946,0.04441748,2609.8,2609.6,0.11586096]
[1646942799750,0.04065329,2609.8,2609.6,0.11586096]
[1646942800151,0.04441748,2609.8,2609.6,0.11586096]
[1646942801003,0.04065329,2609.8,2609.6,0.11586096]
[1646942801201,0.04444976,2609.8,2609.6,0.11586096]
[1646942802304,0.04065329,2609.8,2609.6,0.11586096]
[1646942802702,0.04444385,2609.8,2609.6,0.11586096]
[1646942803104,0.05602398,2610.2,2609.7,20.5]
[1646942803307,9.2643831,2610.5,2609.8,0.11586096]
[1646942803308,0.05674129,2610.5,2609.8,0.11586096]
[1646942803507,2.85868903,2611.1,2609.9,3.5755]
[1646942803508,0.04823337,2610.8,2609.9,3.5755]
[1646942803704,1.45197109,2610.7,2610.0,3.93152127]
[1646942803907,1.45197109,2610.6,2610.1,0.38660453]
[1646942804106,0.89679189,2611.3,2610.3,0.98910882]
[1646942804311,1.45236856,2611.2,2610.8,1.0612877]
[1646942804552,1.45236856,2611.2,2610.8,0.24736774]
[1646942804952,0.00211702,2610.9,2610.8,0.24736774]
[1646942805750,1.45236856,2611.2,2610.8,0.24736774]
[1646942805951,1.45236856,2611.2,2610.6,1.23026269]
[1646942805952,1.45236856,2611.2,2610.6,2.18818269]
[1646942806150,0.0040698,2611.0,2610.6,2.18818269]
[1646942806954,0.0040698,2611.0,2610.7,0.14596824]
[1646942807151,1.45236856,2611.2,2610.7,0.14596824]
[1646942807352,0.00406984,2610.9,2610.7,0.14596824]
[1646942808208,1.45236856,2611.2,2610.7,0.14596824]
[1646942808600,0.00405778,2610.9,2610.6,1.48026269]
[1646942809401,1.45236856,2611.2,2610.6,1.48026269]
[1646942809815,0.00405781,2610.9,2610.3,1.40124742]
[1646942810007,0.07041533,2610.9,2610.3,1.3299]
[1646942810607,0.06635752,2610.9,2610.3,1.3299]
[1646942811008,0.00392401,2610.7,2610.3,1.3299]
[1646942811953,0.12066656,2610.9,2610.3,1.3299]
[1646942812161,0.0039252,2610.6,2610.3,0.1915]
[1646942813255,0.00392523,2610.6,2610.3,0.1915]
[1646942813456,0.00392523,2610.6,2609.8,1.2259]
[1646942813856,0.00392523,2610.6,2609.7,3.9058]
[1646942814057,0.38792523,2610.6,2609.7,3.9058]
[1646942814259,0.0604445,2610.5,2609.7,3.9058]
[1646942814563,0.00377155,2610.3,2609.7,3.9058]
[1646942814863,0.00377155,2610.3,2609.9,0.95804994]
[1646942815462,0.04948899,2610.7,2609.9,0.95804994]
[1646942815714,0.00377598,2610.2,2609.9,0.95804994]
[1646942816310,0.04875444,2610.6,2609.9,0.95804994]
[1646942816711,0.05993422,2610.5,2609.9,0.95804994]
[1646942816912,0.05993422,2610.5,2609.7,3.9058]
[1646942817517,0.70529189,2610.5,2609.7,3.9058]
[1646942817713,0.05941171,2610.4,2609.6,2.9835]
[1646942818713,0.05548993,2610.2,2609.6,2.9835]
[1646942818913,0.05548993,2610.2,2609.5,1.22758164]
[1646942819115,0.05548993,2610.2,2609.5,1.2259]
[1646942819316,0.3,2610.3,2609.5,1.22998571]
[1646942819317,0.00408442,2610.3,2609.5,1.22998571]
[1646942819763,0.09938223,2610.1,2609.5,1.22998571]
[1646942820359,0.09938223,2610.1,2609.3,2.3426]
[1646942820559,0.09938223,2610.1,2609.5,0.00408562]
[1646942820762,1.10705461,2609.9,2609.5,0.00408562]
[1646942820964,3.56079435,2609.8,2609.5,0.00408562]
[1646942821160,0.05592914,2609.7,2609.5,0.00408562]
[1646942821360,1.22422103,2609.7,2609.5,0.00408562]
[1646942821561,0.384,2609.5,2608.7,0.00153304]
[1646942821762,0.05469579,2609.4,2608.5,2.999296]
[1646942821960,1.90586005,2609.2,2609.1,0.01626963]
[1646942822160,2.21788,2609.2,2609.1,0.01626963]
[1646942822764,1.25894,2609.2,2608.5,0.006096]
[1646942822962,0.3,2609.2,2609.0,0.00406708]
[1646942823999,0.3,2609.2,2608.5,0.006096]
[1646942824201,0.3,2609.2,2609.0,0.00406712]
[1646942825205,0.3,2609.2,2608.3,2.7914406]
[1646942825409,3.8,2609.2,2609.0,0.00409036]
[1646942825608,0.3,2609.2,2609.0,0.00409036]
[1646942826206,0.3,2609.3,2609.0,0.00409036]
[1646942826405,1.9589374,2609.4,2608.5,0.012192]
[1646942826406,1.0,2609.4,2608.5,0.012192]
[1646942826607,2.85912194,2609.7,2608.8,1.0898048]
[1646942827047,0.95868,2609.6,2608.8,1.0898048]
[1646942827647,1.25868,2609.6,2608.8,1.0898048]
[1646942827848,0.00241883,2609.3,2608.7,0.06486504]
[1646942828449,0.00161883,2609.3,2608.7,0.06486504]
[1646942828649,0.00161883,2609.3,2608.8,0.12352227]
[1646942828851,1.44507798,2609.5,2608.8,0.12352227]
[1646942829050,1.44507798,2609.5,2608.9,0.87215004]
[1646942829248,1.44507798,2609.5,2609.0,0.12352227]
[1646942829854,0.3,2609.6,2609.0,0.12352227]
[1646942830054,1.9586423,2609.7,2609.0,0.12352227]
[1646942830253,3.75114616,2609.8,2609.0,1.16852227]
[1646942830254,1.44471449,2609.6,2609.0,1.16852227]
[1646942830456,0.06633167,2609.2,2609.1,0.1989241]
[1646942833403,0.06633167,2609.2,2609.1,0.12352227]
[1646942833801,0.06633167,2609.2,2608.9,0.12352227]
[1646942835051,0.26389345,2609.2,2608.9,0.12352227]
[1646942836052,0.25979451,2609.2,2608.9,0.12352227]
[1646942836252,0.26389345,2609.2,2608.9,0.12352227]
[1646942836653,0.26389345,2609.2,2609.0,0.12352227]
[1646942836853,0.26389345,2609.2,2609.1,0.12352227]
[1646942837154,0.25979451,2609.2,2609.1,0.12352227]
[1646942837455,0.26372282,2609.2,2609.1,0.12352227]
[1646942837654,0.26372282,2609.2,2608.7,0.12352227]
[1646942837853,0.26372282,2609.2,2608.8,0.12352227]
[1646942838053,0.26372282,2609.2,2608.9,0.12352227]
[1646942838300,0.26372282,2609.2,2609.0,0.12352227]
[1646942838301,0.25979451,2609.2,2609.0,0.12352227]
[1646942838504,0.25979451,2609.2,2609.1,0.12352227]
[1646942838704,0.25979451,2609.2,2608.6,1.90088241]
[1646942838705,0.25979451,2609.2,2608.8,0.95856]
[1646942838900,0.00392838,2609.1,2608.9,0.12352227]
[1646942839301,0.06821342,2609.1,2608.9,0.12352227]
[1646942839503,0.06428504,2609.1,2609.0,0.12352227]
[1646942839705,0.06428504,2609.1,2608.7,0.12352227]
[1646942839904,0.06821342,2609.1,2608.7,0.12352227]
[1646942840704,0.06428504,2609.1,2608.7,0.12352227]
[1646942841110,0.00376923,2609.0,2608.7,0.12352227]
[1646942842048,0.06428504,2609.1,2608.7,0.12352227]
[1646942842249,0.00376923,2609.0,2608.7,0.12352227]
[1646942843250,0.06428504,2609.1,2608.7,0.12352227]
[1646942843451,0.00376923,2609.0,2608.7,0.12352227]
[1646942843654,0.00376923,2609.0,2608.8,0.95854]
[1646942843852,0.00376923,2609.0,2608.9,0.12352227]
[1646942844451,0.06428504,2609.1,2608.9,0.12352227]
[1646942844655,0.06428504,2609.1,2609.0,0.12352227]
[1646942844656,0.06806969,2609.1,2609.0,0.12352227]
[1646942845057,0.06806969,2609.1,2609.0,0.95845]
[1646942845255,0.06806969,2609.1,2609.0,2.19997095]
[1646942845721,0.06428504,2609.1,2609.0,2.19997095]
[1646942846110,0.06428504,2609.1,2609.0,2.00847095]
[1646942846711,0.06428504,2609.1,2609.0,1.05002095]
[1646942848120,0.06428504,2609.1,2609.0,0.12352227]
[1646942848520,0.02275002,2609.1,2609.0,0.12352227]
[1646942850657,0.02275002,2609.1,2608.9,0.12352227]
[1646942850858,0.06195354,2609.1,2608.9,0.12352227]
[1646942851861,0.06616738,2609.1,2608.9,0.12352227]
[1646942852861,0.06195354,2609.1,2608.9,0.12352227]
[1646942853065,0.06616738,2609.1,2608.9,0.12352227]
[1646942854099,0.06195354,2609.1,2608.9,0.12352227]
[1646942854302,0.06616738,2609.1,2608.9,0.12352227]
[1646942855303,0.06195354,2609.1,2608.9,0.12352227]
[1646942855503,0.06598419,2609.1,2608.9,0.12352227]
[1646942856503,0.06195354,2609.1,2608.9,0.12352227]
[1646942856703,0.06584513,2609.1,2608.9,0.12352227]
[1646942857552,0.06195354,2609.1,2608.9,0.12352227]
[1646942857953,0.06584513,2609.1,2608.9,0.12352227]
[1646942858853,0.06195354,2609.1,2608.9,0.12352227]
[1646942859052,0.06586208,2609.1,2608.9,0.12352227]
[1646942859560,0.06586208,2609.1,2609.0,0.95852]
[1646942859959,0.06195354,2609.1,2609.0,1.08204227]
[1646942862406,0.06195354,2609.1,2609.0,1.78393268]
[1646942862605,0.06195354,2609.1,2609.0,1.08204227]
[1646942864107,0.06195354,2609.1,2609.0,1.78393268]
[1646942864855,0.06195354,2609.1,2609.0,0.12352227]
[1646942865253,0.06195354,2609.1,2608.9,0.12352227]
[1646942865452,1.45256237,2609.0,2608.9,0.12352227]
[1646942865852,1.51349763,2609.0,2608.9,0.12352227]
[1646942866655,1.45246763,2609.0,2608.9,0.12352227]
[1646942866855,1.50096572,2609.0,2608.9,0.12352227]
[1646942868399,1.50096572,2609.0,2608.7,0.82541268]
[1646942868601,0.03053552,2609.2,2608.7,0.82541268]
[1646942868801,1.45631449,2609.1,2608.8,0.12352227]
[1646942869000,1.45631449,2609.1,2608.9,0.12352227]
[1646942869201,1.45631449,2609.1,2609.0,0.12352227]
[1646942869604,1.45255464,2609.1,2609.0,0.12352227]
[1646942869804,1.50045584,2609.1,2609.0,0.12352227]
[1646942874052,1.80045584,2609.1,2609.0,0.12352227]
[1646942874252,1.75255464,2609.1,2609.0,0.12352227]
[1646942874956,1.60975959,2609.1,2609.0,0.12352227]
[1646942881362,0.15720495,2609.1,2609.0,0.12352227]
[1646942881563,0.15720495,2609.1,2609.0,0.19469155]
[1646942882164,0.10720495,2609.1,2609.0,0.19469155]
[1646942882364,0.00404762,2609.2,2609.1,0.95831]
[1646942882663,0.00404762,2609.2,2609.1,1.08183227]
[1646942882866,1.45709996,2610.0,2609.1,1.54483227]
[1646942883061,1.45709996,2610.0,2609.3,0.25]
[1646942883305,1.45709996,2610.0,2609.4,0.12352227]
[1646942883503,1.45709996,2610.0,2609.5,0.12352227]
[1646942883707,1.45709996,2610.0,2609.6,0.12352227]
[1646942883904,1.45709996,2610.0,2609.7,1.22971882]
[1646942884104,1.45709996,2610.0,2609.8,0.12352227]
[1646942884304,0.0476221,2610.0,2609.9,0.12352227]
[1646942884509,1.50428923,2610.0,2609.9,0.12352227]
[1646942885709,0.00403718,2610.1,2609.9,0.12352227]
[1646942886013,0.00403718,2610.1,2609.9,0.9979]
[1646942886309,0.00403718,2610.1,2610.0,0.07160554]
[1646942886508,0.70529189,2610.7,2610.0,0.07160554]
[1646942886710,0.62126012,2611.0,2610.0,0.07160554]
[1646942886711,0.00403715,2610.1,2610.0,0.07160554]
[1646942887547,0.00403715,2610.1,2609.8,0.07118976]
[1646942887749,4.20529189,2610.5,2609.8,0.07118976]
[1646942887951,0.70529189,2610.5,2609.8,0.07118976]
[1646942888153,0.00403774,2610.2,2609.8,0.07118976]
[1646942889048,4.50529189,2610.5,2609.6,0.0769378]
[1646942889252,0.00403778,2610.1,2609.6,0.0769378]
[1646942889449,0.00403778,2610.1,2609.4,0.00155517]
[1646942889654,0.13969249,2609.5,2609.1,0.00155517]
[1646942889853,1.01518595,2609.4,2608.9,0.07085903]
[1646942890051,1.01518595,2609.4,2608.9,0.06930386]
[1646942890251,0.13969249,2609.5,2608.7,0.06986132]
[1646942890451,0.00381176,2609.4,2608.7,0.06986132]
[1646942891104,0.00381176,2609.4,2608.7,0.7051807]
[1646942891305,0.13969249,2609.5,2608.8,0.07749282]
[1646942891506,1.32334634,2609.5,2608.8,0.07749282]
[1646942891704,0.00382369,2609.2,2608.8,0.07749282]
[1646942892506,1.32334634,2609.5,2608.8,0.07749282]
[1646942892907,0.00382372,2609.1,2608.8,0.07749282]
[1646942893708,0.13969249,2609.5,2608.8,0.07749282]
[1646942894008,0.00376572,2609.1,2608.8,0.07749282]
[1646942894954,0.06288146,2609.3,2608.8,0.07749282]
[1646942895157,0.00377176,2609.1,2609.0,1.09108265]
[1646942895757,0.00377176,2609.1,2608.8,0.07749282]
[1646942896259,0.06288146,2609.3,2608.8,0.07749282]
[1646942896457,0.00377176,2609.1,2608.8,0.07749282]
[1646942896756,0.00377176,2609.1,2608.8,0.96935715]
[1646942896958,0.00377176,2609.1,2608.9,0.08357195]
[1646942897359,0.06288146,2609.3,2608.9,0.08357195]
[1646942897757,0.00377526,2609.1,2608.9,0.08357195]
[1646942897960,0.00377526,2609.1,2608.9,13.14608195]
[1646942898203,0.00377526,2609.1,2609.0,0.08104006]
[1646942898608,0.06288146,2609.3,2609.0,0.08104006]
[1646942898805,0.00377661,2609.1,2609.0,0.9584]
[1646942899002,0.00377661,2609.1,2609.0,1.6635807]
[1646942899403,0.00377661,2609.1,2609.0,3.5803307]
[1646942899608,0.00377661,2609.1,2609.0,4.5387266]
[1646942899808,0.06281049,2609.1,2609.0,18.1057266]
[1646942900009,0.06281049,2609.1,2609.0,18.77711896]
[1646942900207,0.06281049,2609.1,2609.0,18.07193826]
[1646942905053,0.06281003,2609.1,2609.0,18.07193826]
[1646942905454,0.06281003,2609.1,2609.0,18.77549216]
[1646942905905,0.06281003,2609.1,2609.0,18.1946684]
[1646942909554,0.00128225,2609.1,2609.0,18.1946684]
[1646942910454,0.1255774,2609.1,2609.0,17.1946684]
[1646942910655,0.1255774,2609.1,2609.0,2.7108725]
[1646942910855,0.1255774,2609.1,2609.0,0.12273014]
[1646942911455,0.1255774,2609.1,2608.9,0.12273014]
[1646942911659,0.1255774,2609.1,2609.0,0.12273014]
[1646942912057,0.12935347,2609.1,2609.0,0.12273014]
[1646942912356,0.12935347,2609.1,2608.9,0.12273014]
[1646942912556,0.12935347,2609.1,2609.0,0.12273014]
[1646942912955,0.1255774,2609.1,2608.9,0.12273014]
[1646942913202,0.1255774,2609.1,2609.0,0.12273014]
[1646942914002,0.1255774,2609.1,2608.8,0.12273014]
[1646942914205,0.1255774,2609.1,2608.9,0.12273014]
[1646942914402,0.1255774,2609.1,2609.0,0.12273014]
[1646942914806,0.1255774,2609.1,2608.8,0.12273014]
[1646942915005,0.1255774,2609.1,2608.9,0.12273014]
[1646942915208,1.1255774,2609.1,2609.0,0.12273014]
[1646942915408,4.6255774,2609.1,2609.0,0.12273014]
[1646942915609,0.0516432,2609.0,2608.5,0.012192]
[1646942915906,0.0516432,2609.0,2608.6,0.11941767]
[1646942915907,1.45201843,2608.9,2608.6,0.11941767]
[1646942916109,0.0461438,2608.8,2608.6,0.11941767]
[1646942918969,1.45167654,2608.7,2608.6,0.11941767]
[1646942919168,4.95167654,2608.7,2608.6,0.11941767]
[1646942919569,1.45167654,2608.7,2608.6,0.11941767]
[1646942920171,0.0461438,2608.8,2608.6,0.11941767]
[1646942922812,1.45019071,2608.7,2608.6,0.11941767]
[1646942923610,0.12181021,2608.9,2608.6,0.11941767]
[1646942924854,1.44948691,2608.8,2608.6,0.11941767]
[1646942925254,0.06055596,2608.7,2608.6,0.11941767]
[1646942927655,0.06055596,2608.7,2608.5,0.01596871]
[1646942928704,0.06055596,2608.7,2608.5,0.012192]
[1646942928904,0.06055596,2608.7,2608.5,0.01596874]
[1646942929914,0.04207863,2608.7,2608.6,0.11909216]
[1646942930409,0.18248096,2608.7,2608.6,0.11909216]
[1646942931009,0.18248096,2608.7,2608.6,0.20495632]
[1646942934863,0.24228939,2608.7,2608.6,0.20495632]
[1646942939861,0.24228939,2608.7,2608.6,0.39645632]
[1646942940671,0.24228939,2608.7,2608.6,12.41459216]
[1646942940866,0.24228939,2608.7,2608.6,14.61219216]
[1646942941465,0.18148939,2608.7,2608.6,14.61219216]
[1646942944916,0.2416366,2608.7,2608.6,1.50819216]
[1646942945114,0.2416366,2608.7,2608.6,0.58209216]
[1646942945313,0.2416366,2608.7,2608.6,0.11909216]
[1646942950065,0.20493309,2608.7,2608.6,0.11909216]
[1646942950465,0.24768267,2608.7,2608.6,0.11909216]
[1646942954569,0.24768267,2608.7,2608.6,0.20971152]
[1646942957870,0.18158267,2608.7,2608.6,0.11909216]
[1646942958069,0.18158267,2608.7,2608.6,0.31059216]
[1646942959609,0.24627198,2608.7,2608.6,0.31059216]
[1646942962360,0.24627198,2608.7,2608.6,12.97022797]
[1646942962759,0.24627198,2608.7,2608.6,13.97022797]
[1646942963162,0.24627198,2608.7,2608.6,1.82346397]
[1646942963360,0.24627198,2608.7,2608.6,0.82346397]
[1646942964361,0.24627198,2608.7,2608.6,0.11909216]
[1646942969457,0.24627198,2608.7,2608.6,0.82346397]
[1646942970061,0.20852868,2608.7,2608.6,0.82346397]
[1646942970262,0.24391127,2608.7,2608.6,0.82346397]
[1646942970763,0.13969249,2609.5,2608.7,0.0751024]
[1646942970965,1.45666837,2609.4,2608.8,2.03237506]
[1646942971164,0.00377038,2609.0,2608.9,0.90443274]
[1646942971365,0.00377038,2609.0,2608.9,0.19958984]
[1646942971565,0.00377038,2609.0,2608.9,0.90443274]
[1646942971964,1.45666837,2609.4,2608.9,0.90443274]
[1646942972162,1.45666837,2609.4,2609.1,0.87635092]
[1646942972364,1.45666837,2609.4,2609.2,0.11909216]
[1646942973411,1.46044208,2609.4,2609.2,0.11909216]
[1646942974011,1.46044208,2609.4,2609.3,0.11909216]
[1646942974513,4.44821806,2609.7,2609.0,0.11909216]
[1646942974514,1.45666837,2609.6,2609.0,0.11909216]
[1646942974716,0.00377367,2609.5,2609.0,0.11909216]
[1646942974916,0.05441353,2609.4,2609.0,0.11909216]
[1646942975117,0.05441353,2609.4,2609.1,0.11909216]
[1646942975118,1.45666837,2609.3,2609.1,0.11909216]
[1646942975318,1.45666837,2609.3,2609.2,0.11909216]
[1646942975717,1.45666837,2609.3,2608.7,0.82393506]
[1646942975917,1.46054411,2609.3,2608.7,0.82393506]
[1646942976957,1.45666837,2609.3,2608.7,0.82393506]
[1646942977157,0.00397853,2609.1,2608.7,0.82393506]
[1646942977957,1.45666837,2609.3,2608.7,0.82393506]
[1646942978359,0.0039786,2609.0,2608.7,0.11909216]
[1646942978560,0.0039786,2609.0,2608.8,0.11909216]
[1646942978759,0.0039786,2609.0,2608.9,0.11909216]
[1646942978962,0.0039786,2609.0,2608.7,0.11909216]
[1646942979364,1.45666837,2609.3,2608.8,0.95844]
[1646942979566,1.45666837,2609.3,2608.9,2.57981262]
[1646942979567,0.00386048,2609.1,2608.9,2.57981262]
[1646942979765,0.00386048,2609.1,2609.0,0.11909216]
[1646942980163,0.00386048,2609.1,2609.0,0.58209216]
[1646942980363,0.00386048,2609.1,2609.0,1.54040216]
[1646942980564,0.10441757,2609.2,2609.0,2.24524506]
[1646942980820,0.10815893,2609.2,2609.1,0.20585098]
[1646942981617,0.10441757,2609.2,2609.1,0.20585098]
[1646942985561,0.10462724,2609.3,2609.2,11.72]
[1646942985562,0.05600386,2609.3,2609.2,11.72]
[1646942985763,0.05600386,2609.3,2609.2,14.00693506]
[1646942986260,0.05600386,2609.3,2609.2,17.00693506]
[1646942986461,0.05194451,2609.3,2609.2,17.00693506]
[1646942987060,0.05194451,2609.3,2609.2,14.00693506]
[1646942988308,0.05194451,2609.3,2609.2,17.00693506]
[1646942988509,0.05194451,2609.3,2609.2,16.30209216]
[1646942989110,0.05194451,2609.3,2609.2,17.19783867]
[1646942989917,0.05194451,2609.3,2609.2,13.49369216]
[1646942990119,0.04356951,2609.3,2609.2,13.49369216]
[1646942990314,0.13709591,2609.3,2609.2,13.49369216]